[Event "POL-chT 2nd League-3 2020"]
[Site "Poronin"]
[Date "2020.09.07"]
[Round "3.13"]
[White "Brozyna, Mateusz"]
[Black "Kaminski, Piotr"]
[Result "1-0"]
[ECO "B18"]
[WhiteElo "2300"]
[BlackElo "2099"]
[Annotator "ChessBase"]
[PlyCount "79"]
[EventDate "2020.09.05"]
[EventType "team-tourn"]
[EventCountry "POL"]
[SourceTitle "playchess.com"]
[Source "ChessBase"]
[SourceQuality "1"]
[TimeControl "40/5400+30:900+30"]

1. e4 {[%emt 0:00:00]} c6 {[%emt 0:00:00]} 2. Nc3 {[%emt 0:01:30]} d5 {[%emt 0:00:00]} 3. d4 {[%emt 0:00:52]} dxe4 {[%emt 0:00:19]} 4. Nxe4 {[%emt 0:00:07]} Bf5 {[%emt 0:00:06]} 5. Ng3 {[%emt 0:00:08]} Bg6 {[%emt 0:00:07]} 6. Nh3 {[%emt 0:00:19]} e6 {[%emt 0:01:01]} 7. Nf4 {[%emt 0:00:06]} Bd6 {[%emt 0:01:30]} 8. Ngh5 {[%emt 0:00:06]} Bxh5 {[%emt 0:07:58]} 9. Nxh5 {[%emt 0:00:17]} g6 {[%emt 0:01:05]} 10. Ng3 {[%emt 0:00:03]} Qh4 {[%emt 0:02:32]} 11. c3 {[%emt 0:00:06]} Nd7 {[%emt 0:05:27]} 12. Qf3 {[%emt 0:00:50]} Ngf6 {[%emt 0:01:59]} 13. Ne2 {[%emt 0:00:08]} Qe4 {[%emt 0:06:49]} 14. Qxe4 {[%emt 0:01:44]} Nxe4 {[%emt 0:00:15]} 15. g3 {[%emt 0:00:19]} e5 {[%emt 0:08:31]} 16. Bg2 {[%emt 0:00:08]} f5 {[%emt 0:03:23]} 17. O-O {[%emt 0:03:39]} Nef6 {[%emt 0:06:47]} 18. dxe5 {[%emt 0:07:26]} Bxe5 {[%emt 0:02:42]} 19. Be3 {[%emt 0:04:11]} Kf7 {[%emt 0:02:55]} 20. Rfd1 {[%emt 0:01:54]} Rhd8 {[%emt 0:06:00]} 21. Nc1 {[%emt 0:09:54]} Bc7 {[%emt 0:06:31]} 22. Nd3 {[%emt 0:01:33]} Bb6 {[%emt 0:02:07]} 23. Bf4 {[%emt 0:08:48]} Re8 {[%emt 0:08:26]} 24. a4 {[%emt 0:05:06]} a5 {[%emt 0:03:48]} 25. b4 {[%emt 0:07:15]} Re2 {[%emt 0:06:57]} 26. Rd2 {[%emt 0:10:41]} Rxd2 {[%emt 0:04:12]} 27. Bxd2 {[%emt 0:00:02]} Ne4 {[%emt 0:00:18]} 28. Be1 {[%emt 0:02:38]} axb4 {[%emt 0:04:07]} 29. cxb4 {[%emt 0:03:11]} Bd4 {[%emt 0:00:05]} 30. Ra2 {[%emt 0:02:56]} Nb6 {[%emt 0:03:58]} 31. a5 {[%emt 0:01:29]} Nc4 {[%emt 0:00:27]} 32. Rc2 {[%emt 0:01:20]} Ncd6 {[%emt 0:02:17]} 33. Kf1 {[%emt 0:02:53]} Ke6 {[%emt 0:00:56]} 34. Nf4+ {[%emt 0:08:19]} Kf6 {[%emt 0:01:24]} 35. Ne2 {[%emt 0:03:00]} Ke5 {[%emt 0:00:53]} 36. f3 {[%emt 0:03:51]} Ba7 {[%emt 0:00:48]} 37. fxe4 {[%emt 0:00:24]} fxe4 {[%emt 0:00:09]} 38. Bc3+ {[%emt 0:00:14]} Kd5 {[%emt 0:00:06]} 39. Rd2+ {[%emt 0:00:23]} Ke6 {[%emt 0:00:06]} 40. Nf4+ {[%emt 0:00:00]} 1-0

[Event "POL-chT 2nd League-3 2020"]
[Site "Poronin"]
[Date "2020.09.07"]
[Round "3.14"]
[White "Szmyd, Arkadiusz"]
[Black "Kudas, Damian"]
[Result "0-1"]
[ECO "B67"]
[WhiteElo "2104"]
[BlackElo "2132"]
[Annotator "NA"]
[PlyCount "76"]
[EventDate "2020.09.05"]
[EventType "team-tourn"]
[EventCountry "POL"]
[SourceTitle "playchess.com"]
[Source "ChessBase"]
[SourceQuality "1"]
[TimeControl "40/5400+30:900+30"]

1. e4 {[%emt 0:00:00]} c5 {[%emt 0:00:00]} 2. Nf3 {[%emt 0:00:00]} d6 {[%emt 0:00:00]} 3. d4 {[%emt 0:00:00]} cxd4 {[%emt 0:00:00]} 4. Nxd4 {[%emt 0:00:02]} Nf6 {[%emt 0:00:00]} 5. Nc3 {[%emt 0:00:10]} Nc6 {[%emt 0:00:00]} 6. Bg5 {[%emt 0:00:15]} e6 {[%emt 0:00:03]} 7. Qd2 {[%emt 0:00:11]} a6 {[%emt 0:00:06]} 8. O-O-O {[%emt 0:00:15]} Bd7 {[%emt 0:00:06]} 9. f4 {[%emt 0:00:23]} b5 {[%emt 0:00:16]} 10. Bxf6 {[%emt 0:01:15]} gxf6 {[%emt 0:00:07]} 11. Kb1 {[%emt 0:00:23]} b4 {[%emt 0:01:12]} 12. Nce2 {[%emt 0:00:34]} Qb6 {[%emt 0:00:35]} 13. Nxc6 {[%emt 0:00:28]} Bxc6 {[%emt 0:00:09]} 14. f5 {[%emt 0:01:07]} e5 {[%emt 0:00:29]} 15. Ng3 {[%emt 0:00:12]} h5 {[%emt 0:01:01]} 16. h4 {[%emt 0:00:14]} Qc5 {[%emt 0:01:33]} 17. Bd3 {[%emt 0:09:54]} Bh6 {[%emt 0:06:03]} 18. Qe2 {[%emt 0:00:03]} Qe3 {[%emt 0:11:56]} 19. Nxh5 {[%emt 0:00:55]} Ke7 {[%emt 0:02:16]} 20. Qf1 {[%emt 0:24:11]} Bxe4 {[%emt 0:06:33]} 21. Bxe4 {[%emt 0:00:36]} Qxe4 {[%emt 0:02:22]} 22. Ng3 {[%emt 0:01:13]} Qc6 {[%emt 0:06:09]} 23. Qe2 {[%emt 0:04:02]} Rhg8 {[%emt 0:09:20]} 24. Rh3 {[%emt 0:07:50]} Rac8 {[%emt 0:02:38]} 25. Ne4 {[%emt 0:24:28]} d5 {[%emt 0:12:54]} 26. Ng3 {[%emt 0:04:29]} Rc7 27. Nh5 d4 {[%emt 0:02:23]} 28. Rg3 {[%emt 0:05:04]} Rgc8 {[%emt 0:02:55]} 29. Rb3 {[%emt 0:06:17]} Qxc2+ {[%emt 0:09:37]} 30. Qxc2 {[%emt 0:00:11]} Rxc2 {[%emt 0:00:03]} 31. a3 {[%emt 0:00:19]} Rc1+ {[%emt 0:00:57]} 32. Rxc1 {[%emt 0:00:09]} Rxc1+ {[%emt 0:00:02]} 33. Ka2 {[%emt 0:00:15]} a5 {[%emt 0:00:29]} 34. axb4 {[%emt 0:00:14]} axb4 {[%emt 0:00:12]} 35. Rd3 {[%emt 0:08:10]} Be3 {[%emt 0:02:36]} 36. Ng3 {[%emt 0:01:00]} Kd6 37. Kb3 {[%emt 0:02:52]} Kd5 {[%emt 0:04:13]} 38. Nh5 {[%emt 0:00:38]} Ke4 {[%emt 0:00:44]} 0-1

[Event "POL-chT 2nd League-3 2020"]
[Site "Poronin"]
[Date "2020.09.07"]
[Round "3.15"]
[White "Lach, Piotr"]
[Black "Zawierucha, Aleksander"]
[Result "1/2-1/2"]
[ECO "D00"]
[WhiteElo "2079"]
[BlackElo "1899"]
[Annotator "ChessBase"]
[PlyCount "25"]
[EventDate "2020.09.05"]
[EventType "team-tourn"]
[EventCountry "POL"]
[SourceTitle "playchess.com"]
[Source "ChessBase"]
[SourceQuality "1"]
[TimeControl "40/5400+30:1800+30"]

1. d4 {[%emt 0:00:00]} d5 {[%emt 0:00:00]} 2. Nc3 {[%emt 0:00:00]} Nf6 {[%emt 0:00:07]} 3. Bf4 {[%emt 0:00:00]} e6 {[%emt 0:01:21]} 4. e3 {[%emt 0:00:00]} c5 {[%emt 0:02:29]} 5. Nb5 {[%emt 0:00:18]} Na6 {[%emt 0:00:57]} 6. c3 {[%emt 0:00:15]} Be7 {[%emt 0:02:36]} 7. dxc5 {[%emt 0:14:11]} Bxc5 {[%emt 0:02:34]} 8. Bd3 {[%emt 0:01:50]} O-O {[%emt 0:03:06]} 9. Nf3 {[%emt 0:02:26]} Qb6 {[%emt 0:02:19]} 10. a4 {[%emt 0:20:50]} Bd7 {[%emt 0:08:05]} 11. O-O {[%emt 0:12:51]} Be7 {[%emt 0:13:06]} 12. a5 {[%emt 0:12:46]} Qd8 {[%emt 0:01:03]} 13. Ne5 {[%emt 0:04:15]} 1/2-1/2

[Event "POL-chT 2nd League-3 2020"]
[Site "Poronin"]
[Date "2020.09.07"]
[Round "3.16"]
[White "Boruta, Dawid"]
[Black "Watorek, Marcin"]
[Result "1/2-1/2"]
[ECO "A03"]
[WhiteElo "1822"]
[BlackElo "2100"]
[Annotator "ChessBase"]
[PlyCount "123"]
[EventDate "2020.09.05"]
[EventType "team-tourn"]
[EventCountry "POL"]
[SourceTitle "playchess.com"]
[Source "ChessBase"]
[SourceQuality "1"]
[TimeControl "40/5400+30:900+30"]

1. f4 {[%emt 0:00:00]} d5 {[%emt 0:00:00]} 2. Nf3 {[%emt 0:00:00]} c5 {[%emt 0:00:00]} 3. g3 {[%emt 0:00:00]} Nc6 {[%emt 0:00:00]} 4. Bg2 {[%emt 0:00:00]} g6 {[%emt 0:00:05]} 5. O-O {[%emt 0:00:13]} Bg7 {[%emt 0:00:05]} 6. d3 {[%emt 0:01:12]} d4 {[%emt 0:00:27]} 7. c3 {[%emt 0:13:12]} Nh6 {[%emt 0:00:33]} 8. e4 {[%emt 0:01:52]} dxe3 {[%emt 0:01:55]} 9. Bxe3 {[%emt 0:00:32]} Qb6 {[%emt 0:00:34]} 10. Qe2 {[%emt 0:11:35]} Ng4 {[%emt 0:01:10]} 11. Bc1 {[%emt 0:05:45]} Bf5 {[%emt 0:01:59]} 12. Kh1 {[%emt 0:14:11]} Rd8 {[%emt 0:11:22]} 13. Ne1 {[%emt 0:00:56]} h5 {[%emt 0:16:40]} 14. h3 {[%emt 0:04:52]} Nf6 {[%emt 0:02:51]} 15. Nd2 {[%emt 0:01:25]} Qa6 {[%emt 0:01:28]} 16. Nb3 {[%emt 0:04:55]} Qb5 {[%emt 0:07:45]} 17. Be3 {[%emt 0:03:03]} Nd7 {[%emt 0:04:00]} 18. Qf2 {[%emt 0:04:10]} O-O {[%emt 0:21:36]} 19. Bxc5 {[%emt 0:03:26]} Nxc5 {[%emt 0:00:20]} 20. Nxc5 {[%emt 0:00:43]} e5 {[%emt 0:03:09]} 21. a4 {[%emt 0:07:14]} Qb6 {[%emt 0:00:56]} 22. Ne4 {[%emt 0:00:33]} Qc7 {[%emt 0:01:27]} 23. fxe5 {[%emt 0:03:17]} Bxe5 {[%emt 0:02:32]} 24. d4 {[%emt 0:06:35]} Bxe4 {[%emt 0:01:10]} 25. Bxe4 {[%emt 0:00:03]} Bxg3 {[%emt 0:00:18]} 26. Qf3 {[%emt 0:01:02]} h4 {[%emt 0:05:11]} 27. Nd3 {[%emt 0:01:40]} Qd7 {[%emt 0:03:06]} 28. Kg2 {[%emt 0:01:56]} f5 {[%emt 0:00:58]} 29. Bxc6 {[%emt 0:00:13]} bxc6 {[%emt 0:00:16]} 30. Nf4 {[%emt 0:06:22]} Rf6 {[%emt 0:06:36]} 31. Ne2 {[%emt 0:00:40]} Bb8 {[%emt 0:00:12]} 32. Rae1 {[%emt 0:01:25]} Qd6 {[%emt 0:01:55]} 33. Qf4 {[%emt 0:01:34]} Qd5+ {[%emt 0:00:05]} 34. Qf3 {[%emt 0:00:01]} Qb3 {[%emt 0:03:00]} 35. Qf2 {[%emt 0:00:41]} Re8 {[%emt 0:00:55]} 36. Qxh4 {[%emt 0:01:26]} Rfe6 {[%emt 0:00:47]} 37. Rf2 {[%emt 0:00:53]} Qd5+ {[%emt 0:00:51]} 38. Kg1 {[%emt 0:00:25]} Qc4 {[%emt 0:00:21]} 39. Kf1 {[%emt 0:00:36]} Qd3 {[%emt 0:00:23]} 40. Qg5 {[%emt 0:00:00]} Bg3 {[%emt 0:00:00]} 41. Qxg3 {[%emt 0:01:04]} Qxg3 {[%emt 0:02:11]} 42. Nxg3 {[%emt 0:00:04]} Rxe1+ {[%emt 0:00:04]} 43. Kg2 {[%emt 0:00:02]} Ra1 {[%emt 0:02:16]} 44. h4 {[%emt 0:05:40]} Rf8 {[%emt 0:04:44]} 45. Kf3 {[%emt 0:04:29]} Kg7 {[%emt 0:01:13]} 46. Re2 {[%emt 0:01:28]} Rxa4 {[%emt 0:01:10]} 47. Re6 {[%emt 0:00:43]} Rf6 {[%emt 0:00:47]} 48. Re7+ {[%emt 0:00:15]} Rf7 {[%emt 0:01:13]} 49. Re6 {[%emt 0:00:04]} Rc7 {[%emt 0:02:03]} 50. h5 {[%emt 0:03:29]} gxh5 {[%emt 0:00:15]} 51. Nxh5+ {[%emt 0:00:24]} Kf7 {[%emt 0:01:02]} 52. Rf6+ {[%emt 0:00:06]} Kg8 {[%emt 0:01:41]} 53. Rxf5 {[%emt 0:00:06]} Rf7 {[%emt 0:00:25]} 54. Rxf7 {[%emt 0:02:12]} Kxf7 {[%emt 0:00:04]} 55. Nf4 {[%emt 0:00:01]} Ra1 {[%emt 0:01:44]} 56. Nd3 {[%emt 0:01:54]} Ke6 {[%emt 0:00:15]} 57. Ke3 {[%emt 0:00:47]} a5 {[%emt 0:01:13]} 58. Kd2 {[%emt 0:00:44]} Kd5 {[%emt 0:00:30]} 59. Kc2 {[%emt 0:00:30]} Rh1 {[%emt 0:00:16]} 60. Kb3 {[%emt 0:01:12]} Rh2 {[%emt 0:00:55]} 61. Nc5 {[%emt 0:00:10]} Rg2 {[%emt 0:01:02]} 62. Na4 {[%emt 0:00:12]} 1/2-1/2

[Event "POL-chT 2nd League-3 2020"]
[Site "Poronin"]
[Date "2020.09.07"]
[Round "3.17"]
[White "Chrzaszcz, Malvina"]
[Black "Gonsior, Monika"]
[Result "1-0"]
[ECO "C00"]
[WhiteElo "2047"]
[BlackElo "2001"]
[Annotator "ChessBase"]
[PlyCount "113"]
[EventDate "2020.09.05"]
[EventType "team-tourn"]
[EventCountry "POL"]
[SourceTitle "playchess.com"]
[Source "ChessBase"]
[SourceQuality "1"]
[TimeControl "40/5400+30:900+30"]

1. e4 {[%emt 0:00:00]} e6 {[%emt 0:00:00]} 2. d4 {[%emt 0:00:00]} b6 {[%emt 0:00:00]} 3. c4 {[%emt 0:00:00]} Bb7 {[%emt 0:00:00]} 4. Bd3 {[%emt 0:00:00]} Bb4+ {[%emt 0:00:52]} 5. Bd2 {[%emt 0:00:48]} Qe7 {[%emt 0:01:19]} 6. Nf3 {[%emt 0:10:08]} Nf6 {[%emt 0:03:43]} 7. Qe2 {[%emt 0:06:53]} Bxd2+ {[%emt 0:03:03]} 8. Nbxd2 {[%emt 0:00:14]} d6 {[%emt 0:02:33]} 9. O-O {[%emt 0:05:17]} e5 {[%emt 0:03:01]} 10. Rac1 {[%emt 0:10:15]} Nbd7 {[%emt 0:02:34]} 11. b4 {[%emt 0:01:43]} c5 {[%emt 0:01:40]} 12. bxc5 {[%emt 0:01:50]} dxc5 {[%emt 0:01:50]} 13. d5 {[%emt 0:00:14]} O-O {[%emt 0:02:12]} 14. a4 {[%emt 0:04:03]} Nh5 {[%emt 0:03:49]} 15. Qe3 {[%emt 0:11:42]} Ndf6 {[%emt 0:04:05]} 16. Nb1 {[%emt 0:07:07]} Nf4 {[%emt 0:02:12]} 17. Nc3 {[%emt 0:00:47]} Ng4 {[%emt 0:04:26]} 18. Qd2 {[%emt 0:00:07]} Qf6 {[%emt 0:01:18]} 19. Ne2 {[%emt 0:06:06]} g5 {[%emt 0:07:00]} 20. Ng3 {[%emt 0:00:31]} h5 {[%emt 0:02:53]} 21. Nf5 {[%emt 0:00:31]} Rfe8 {[%emt 0:04:19]} 22. Bb1 {[%emt 0:02:35]} Nh6 {[%emt 0:01:44]} 23. h4 {[%emt 0:03:39]} gxh4 {[%emt 0:02:22]} 24. N5xh4 {[%emt 0:08:45]} Bc8 {[%emt 0:05:20]} 25. g3 {[%emt 0:04:12]} Qg7 {[%emt 0:02:31]} 26. Kh1 {[%emt 0:01:22]} Ng6 {[%emt 0:04:17]} 27. Nf5 {[%emt 0:01:39]} Nxf5 {[%emt 0:03:49]} 28. exf5 {[%emt 0:00:05]} e4 {[%emt 0:03:19]} 29. fxg6 {[%emt 0:01:20]} exf3 {[%emt 0:00:19]} 30. gxf7+ {[%emt 0:01:34]} Kxf7 {[%emt 0:03:13]} 31. Qf4+ {[%emt 0:03:31]} Qf6 {[%emt 0:01:47]} 32. Qxf6+ {[%emt 0:03:11]} Kxf6 {[%emt 0:00:07]} 33. Rc3 {[%emt 0:01:23]} Bg4 {[%emt 0:00:57]} 34. Bc2 {[%emt 0:00:38]} Re2 {[%emt 0:04:46]} 35. Bd1 {[%emt 0:00:41]} Ra2 {[%emt 0:01:19]} 36. Bxf3 {[%emt 0:00:50]} Rxa4 {[%emt 0:02:11]} 37. Re1 {[%emt 0:01:32]} Rd8 {[%emt 0:03:33]} 38. Re4 {[%emt 0:00:44]} Kg5 {[%emt 0:01:44]} 39. Bxg4 {[%emt 0:01:24]} hxg4 {[%emt 0:00:07]} 40. Re5+ {[%emt 0:00:00]} Kg6 {[%emt 0:00:00]} 41. Re6+ {[%emt 0:00:10]} Kg7 {[%emt 0:01:00]} 42. Re7+ {[%emt 0:03:05]} Kg6 {[%emt 0:00:36]} 43. Re4 {[%emt 0:05:33]} Kg5 {[%emt 0:03:20]} 44. Rce3 {[%emt 0:01:28]} Ra1+ {[%emt 0:02:22]} 45. Kg2 {[%emt 0:00:07]} Rf8 {[%emt 0:02:41]} 46. Rd3 {[%emt 0:04:39]} Rd8 {[%emt 0:03:13]} 47. d6 {[%emt 0:02:35]} Kf5 {[%emt 0:01:23]} 48. Rf4+ {[%emt 0:00:12]} Ke5 {[%emt 0:01:18]} 49. Rd5+ {[%emt 0:00:22]} Ke6 {[%emt 0:00:18]} 50. Rxg4 {[%emt 0:01:41]} Rc1 {[%emt 0:01:01]} 51. Re4+ {[%emt 0:00:51]} Kf6 {[%emt 0:00:40]} 52. g4 {[%emt 0:00:56]} a5 {[%emt 0:01:02]} 53. g5+ {[%emt 0:00:27]} Kf7 {[%emt 0:00:34]} 54. d7 {[%emt 0:00:40]} a4 {[%emt 0:01:03]} 55. g6+ {[%emt 0:00:16]} Kf8 {[%emt 0:01:23]} 56. g7+ {[%emt 0:00:13]} Kf7 {[%emt 0:00:24]} 57. Re8 {[%emt 0:00:22]} 1-0

[Event "POL-chT 2nd League-3 2020"]
[Site "Poronin"]
[Date "2020.09.07"]
[Round "3.18"]
[White "Swiech, Joanna"]
[Black "Gluszko, Monika"]
[Result "1-0"]
[ECO "D82"]
[WhiteElo "1910"]
[BlackElo "1939"]
[Annotator "ChessBase"]
[PlyCount "93"]
[EventDate "2020.09.05"]
[EventType "team-tourn"]
[EventCountry "POL"]
[SourceTitle "playchess.com"]
[Source "ChessBase"]
[SourceQuality "1"]
[TimeControl "40/5400+30:900+30"]

1. d4 {[%emt 0:00:00]} Nf6 {[%emt 0:00:00]} 2. c4 {[%emt 0:00:00]} g6 {[%emt 0:00:00]} 3. Nc3 {[%emt 0:00:00]} d5 {[%emt 0:00:00]} 4. Bf4 {[%emt 0:00:00]} Bg7 {[%emt 0:00:01]} 5. e3 {[%emt 0:00:11]} c5 {[%emt 0:00:46]} 6. dxc5 {[%emt 0:00:18]} Qa5 {[%emt 0:00:18]} 7. Rc1 {[%emt 0:00:31]} dxc4 {[%emt 0:03:26]} 8. Bxc4 {[%emt 0:00:58]} Qxc5 {[%emt 0:01:49]} 9. Qb3 {[%emt 0:05:01]} O-O {[%emt 0:11:47]} 10. Nb5 {[%emt 0:10:30]} Kh8 {[%emt 0:06:58]} 11. Ne2 {[%emt 0:49:41]} e5 {[%emt 0:08:56]} 12. Bxf7 {[%emt 0:05:34]} Qe7 {[%emt 0:00:57]} 13. Bg5 {[%emt 0:02:52]} Nc6 {[%emt 0:14:33]} 14. Bc4 {[%emt 0:01:04]} a6 {[%emt 0:11:57]} 15. Na3 {[%emt 0:05:58]} h6 {[%emt 0:09:41]} 16. Bxf6 {[%emt 0:00:17]} Qxf6 {[%emt 0:00:06]} 17. O-O {[%emt 0:00:34]} e4 {[%emt 0:01:42]} 18. Rc2 {[%emt 0:01:50]} Ne5 {[%emt 0:01:42]} 19. Ng3 {[%emt 0:01:18]} Qh4 {[%emt 0:03:27]} 20. Be2 {[%emt 0:03:34]} b5 {[%emt 0:03:52]} 21. Qd5 {[%emt 0:01:01]} Bf5 {[%emt 0:01:14]} 22. Nxf5 {[%emt 0:02:06]} gxf5 {[%emt 0:00:13]} 23. f4 {[%emt 0:05:03]} Ng4 {[%emt 0:02:57]} 24. Bxg4 {[%emt 0:00:06]} Qxg4 {[%emt 0:00:04]} 25. Rd2 {[%emt 0:02:09]} Bf6 {[%emt 0:03:14]} 26. Qe6 {[%emt 0:00:17]} h5 {[%emt 0:04:31]} 27. h3 {[%emt 0:01:18]} Qg3 {[%emt 0:05:14]} 28. Qxf5 {[%emt 0:01:04]} Qxe3+ {[%emt 0:00:09]} 29. Rdf2 {[%emt 0:00:20]} Ra7 {[%emt 0:01:32]} 30. Kh1 {[%emt 0:00:30]} Rh7 {[%emt 0:01:55]} 31. Rc2 {[%emt 0:00:47]} Bg7 {[%emt 0:01:14]} 32. Rc8 {[%emt 0:00:20]} Kg8 {[%emt 0:00:39]} 33. Qe6+ {[%emt 0:00:28]} Kh8 {[%emt 0:00:04]} 34. Qxa6 {[%emt 0:00:36]} b4 {[%emt 0:00:39]} 35. Nc2 {[%emt 0:00:24]} Qd3 {[%emt 0:00:31]} 36. Nxb4 {[%emt 0:00:29]} Qxa6 {[%emt 0:00:43]} 37. Rxf8+ {[%emt 0:00:05]} Bxf8 {[%emt 0:00:03]} 38. Nxa6 {[%emt 0:00:08]} Ra7 {[%emt 0:00:19]} 39. Nb8 {[%emt 0:00:10]} Rxa2 {[%emt 0:00:16]} 40. Nd7 {[%emt 0:00:00]} Bd6 {[%emt 0:00:00]} 41. Ne5 {[%emt 0:03:12]} Bxe5 {[%emt 0:02:50]} 42. fxe5 {[%emt 0:00:05]} Rxb2 {[%emt 0:00:10]} 43. e6 {[%emt 0:00:15]} Kg7 {[%emt 0:03:08]} 44. Rf7+ {[%emt 0:03:30]} Kg6 {[%emt 0:01:07]} 45. Rf4 {[%emt 0:00:28]} e3 {[%emt 0:02:42]} 46. e7 {[%emt 0:00:12]} Kg5 {[%emt 0:04:44]} 47. Re4 {[%emt 0:00:45]} 1-0

[Event "POL-chT 2nd League-3 2020"]
[Site "Poronin"]
[Date "2020.09.07"]
[Round "3.19"]
[White "Miasik, Adrian"]
[Black "Luba, Lukasz"]
[Result "1-0"]
[ECO "D46"]
[WhiteElo "1958"]
[BlackElo "2212"]
[Annotator "ChessBase"]
[PlyCount "161"]
[EventDate "2020.09.05"]
[EventType "team-tourn"]
[EventCountry "POL"]
[SourceTitle "playchess.com"]
[Source "ChessBase"]
[SourceQuality "1"]
[TimeControl "40/5400+30:900+30"]

1. d4 {[%emt 0:00:00]} d5 {[%emt 0:00:00]} 2. c4 {[%emt 0:00:40]} e6 {[%emt 0:00:08]} 3. Nc3 {[%emt 0:00:36]} c6 {[%emt 0:00:33]} 4. e3 {[%emt 0:01:02]} Nf6 {[%emt 0:02:49]} 5. Nf3 {[%emt 0:01:39]} Nbd7 {[%emt 0:00:08]} 6. Bd3 {[%emt 0:03:02]} Bd6 {[%emt 0:02:32]} 7. O-O {[%emt 0:01:32]} O-O {[%emt 0:03:37]} 8. b3 {[%emt 0:12:59]} e5 {[%emt 0:07:12]} 9. cxd5 {[%emt 0:04:12]} cxd5 {[%emt 0:00:09]} 10. e4 {[%emt 0:05:01]} exd4 {[%emt 0:26:16]} 11. Nxd5 {[%emt 0:02:52]} Nxd5 {[%emt 0:06:55]} 12. exd5 {[%emt 0:00:24]} Nf6 {[%emt 0:08:41]} 13. h3 {[%emt 0:11:51]} Nxd5 {[%emt 0:08:50]} 14. Bb2 {[%emt 0:08:08]} Nf4 {[%emt 0:05:51]} 15. Bxd4 {[%emt 0:02:58]} Qd7 {[%emt 0:03:36]} 16. Re1 {[%emt 0:14:51]} Rd8 {[%emt 0:09:18]} 17. Bf1 {[%emt 0:04:24]} Bb4 {[%emt 0:02:20]} 18. Re4 {[%emt 0:03:53]} Qd6 {[%emt 0:02:36]} 19. Qc1 {[%emt 0:04:30]} Ng6 {[%emt 0:00:37]} 20. Qb2 {[%emt 0:05:18]} Bf5 {[%emt 0:00:56]} 21. Re3 {[%emt 0:00:55]} Ba3 {[%emt 0:00:13]} 22. Qd2 {[%emt 0:00:57]} Rac8 {[%emt 0:00:01]} 23. Qa5 {[%emt 0:00:31]} Bc2 {[%emt 0:01:29]} 24. Bc4 {[%emt 0:01:10]} Qf8 {[%emt 0:01:16]} 25. Qg5 {[%emt 0:02:50]} Bc5 {[%emt 0:01:07]} 26. Bxc5 {[%emt 0:01:04]} Rxc5 {[%emt 0:00:01]} 27. Qg3 {[%emt 0:00:44]} b5 {[%emt 0:00:05]} 28. Bf1 {[%emt 0:00:27]} f5 {[%emt 0:00:02]} 29. Qh2 {[%emt 0:04:02]} f4 {[%emt 0:02:15]} 30. Ree1 {[%emt 0:00:36]} a6 {[%emt 0:01:07]} 31. Rac1 {[%emt 0:00:36]} Qf5 {[%emt 0:00:44]} 32. h4 {[%emt 0:00:38]} Nf8 {[%emt 0:02:35]} 33. Qh3 {[%emt 0:00:23]} Qh5 {[%emt 0:01:07]} 34. Ng5 {[%emt 0:00:35]} Bf5 {[%emt 0:00:15]} 35. Qf3 {[%emt 0:00:45]} Bg4 {[%emt 0:01:10]} 36. Qxf4 {[%emt 0:00:27]} Rf5 {[%emt 0:00:08]} 37. Qg3 {[%emt 0:00:29]} Rfd5 {[%emt 0:01:03]} 38. Rc7 {[%emt 0:01:08]} h6 {[%emt 0:00:40]} 39. Nf3 {[%emt 0:00:30]} R8d7 {[%emt 0:00:20]} 40. Rxd7 {[%emt 0:00:00]} Nxd7 {[%emt 0:00:00]} 41. Nh2 {[%emt 0:03:33]} Bf5 {[%emt 0:05:43]} 42. Re7 {[%emt 0:00:48]} Qg6 {[%emt 0:00:02]} 43. Qxg6 {[%emt 0:03:37]} Bxg6 {[%emt 0:00:19]} 44. Re6 {[%emt 0:00:33]} Bb1 {[%emt 0:02:47]} 45. Rxa6 {[%emt 0:00:52]} Rd1 {[%emt 0:00:21]} 46. a4 {[%emt 0:04:36]} bxa4 {[%emt 0:00:33]} 47. bxa4 {[%emt 0:00:27]} Nc5 {[%emt 0:00:39]} 48. Ra8+ {[%emt 0:00:45]} Kh7 {[%emt 0:00:08]} 49. a5 {[%emt 0:02:14]} Nb3 {[%emt 0:00:13]} 50. a6 {[%emt 0:01:31]} Be4 {[%emt 0:00:31]} 51. Re8 {[%emt 0:00:35]} Nd2 {[%emt 0:01:33]} 52. a7 {[%emt 0:01:05]} Ra1 {[%emt 0:00:18]} 53. g3 {[%emt 0:01:08]} Bc6 {[%emt 0:04:21]} 54. Rd8 {[%emt 0:00:55]} Nxf1 {[%emt 0:00:16]} 55. Nxf1 {[%emt 0:00:04]} Rxa7 {[%emt 0:00:04]} 56. Rd1 {[%emt 0:00:23]} Ra2 {[%emt 0:00:38]} 57. Ne3 {[%emt 0:00:34]} Bf3 {[%emt 0:00:18]} 58. Rc1 {[%emt 0:00:08]} h5 {[%emt 0:01:03]} 59. Ng2 {[%emt 0:00:45]} Kh6 {[%emt 0:01:57]} 60. Re1 {[%emt 0:00:51]} Ra6 {[%emt 0:01:04]} 61. Nf4 {[%emt 0:00:18]} g5 {[%emt 0:01:55]} 62. Re6+ {[%emt 0:00:18]} Rxe6 {[%emt 0:00:06]} 63. Nxe6 {[%emt 0:00:03]} gxh4 {[%emt 0:00:41]} 64. gxh4 {[%emt 0:00:04]} Kg6 {[%emt 0:00:20]} 65. Kh2 {[%emt 0:00:13]} Kf6 {[%emt 0:00:50]} 66. Kg3 {[%emt 0:00:10]} Bd1 {[%emt 0:00:24]} 67. Nf4 {[%emt 0:00:08]} Kg7 {[%emt 0:00:35]} 68. f3 {[%emt 0:00:09]} Kh6 {[%emt 0:00:03]} 69. Nh3 {[%emt 0:00:23]} Kg6 {[%emt 0:00:44]} 70. Kf4 {[%emt 0:00:04]} Kf6 {[%emt 0:00:12]} 71. Ng5 {[%emt 0:00:57]} Ba4 {[%emt 0:01:06]} 72. Ne4+ {[%emt 0:00:07]} Kg6 {[%emt 0:00:17]} 73. Ke5 {[%emt 0:00:15]} Bd7 {[%emt 0:00:46]} 74. f4 {[%emt 0:01:05]} Bg4 {[%emt 0:00:42]} 75. Nd6 {[%emt 0:00:06]} Kg7 {[%emt 0:00:15]} 76. f5 {[%emt 0:00:20]} Bh3 {[%emt 0:00:56]} 77. Ke6 {[%emt 0:01:02]} Kf8 {[%emt 0:00:07]} 78. Kf6 {[%emt 0:00:11]} Bg4 {[%emt 0:00:16]} 79. Ne4 {[%emt 0:00:13]} Bf3 {[%emt 0:00:47]} 80. Ng3 {[%emt 0:00:04]} Bg4 {[%emt 0:00:16]} 81. Kg5 {[%emt 0:00:06]} 1-0